{"text_format":"1","workbook":"xlsx","n_sheets":2,"sheets":["liste","TCD"],"not_rendered":{"charts":0,"images":0,"macros":1,"external_links":0,"defined_names":4,"comments":0,"pivot_tables":2},"unopened":[],"bounds":{"document_bytes":16777216,"sheet_cells":100000,"rows_first":2000,"rows_last":500,"rows_between":2000,"halvings":0,"cell_chars":16384,"cell_head_chars":4096},"cells_cut":0,"cells_raw":0,"read":"whole","date_system":"1900"}

{"sheet":"liste","index":0,"n_rows":487,"n_cols":11,"rows_kept":487,"cut":false,"hidden":false,"merged":[]}
[null,null,"noms","entraineur","numeros"]
[null,null,"A NOUS TROIS","S,GUARATO",{"$f":"ROWS($1:1)","v":1},null,null,null," Entraineur","E ALLARD","<<< Choisir"]
[null,null,"ADORABLE (TM 2700m)","T,DUVALDESTIN",{"$f":"ROWS($1:2)","v":2}]
[null,null,"ADRIENNE DU CITRUS","L.ABRIVARD",{"$f":"ROWS($1:3)","v":3},null,null,null,"Cheval","N°"]
[null,null,"AFGHAN BARBES","C,BIGEON",{"$f":"ROWS($1:4)","v":4},null,null,null,"AUSONE DU KASTEL",47]
[null,null,"AFTER RIVER","S,GUARATO",{"$f":"ROWS($1:5)","v":5},null,null,null,"CHANELLE DU KASTEL",189]
[null,null,"AGLAE PIERJI","Y.A BRIAND",{"$f":"ROWS($1:6)","v":6},null,null,null,"CHERRY CADENCE",203]
[null,null,"AGRIPPA MESLOISE","P,BELLOCHE",{"$f":"ROWS($1:7)","v":7},null,null,null,"DANSE CADENCE",272]
[null,null,"AKIM DU CAP VERT","F,ANNNE",{"$f":"ROWS($1:8)","v":8},null,null,null,"DON WILLIAMS",350]
[null,null,"ALADIN D'ECAJEUL","S,GUARATO",{"$f":"ROWS($1:9)","v":9},null,null,null,"DRIVER CADENCE",372]
[null,null,"ALEXIS","J,M BAZIRE",{"$f":"ROWS($1:10)","v":10},null,null,null,"ELECTRO CADENCE",397]
[null,null,"ALIENOR DE GODREL","F,ANNNE",{"$f":"ROWS($1:11)","v":11},null,null,null,"UN NUAGE D'OSMOZ",460]
[null,null,"ALINEA","D,BONNE",{"$f":"ROWS($1:12)","v":12}]
[null,null,"ALL STAR IS MINE ","Y.A BRIAND",{"$f":"ROWS($1:13)","v":13}]
[null,null,"ALPHA BARBES","C,BIGEON",{"$f":"ROWS($1:14)","v":14}]
[null,null,"ALPHA SATOR","D,BETHOUART",{"$f":"ROWS($1:15)","v":15}]
[null,null,"ALPHEE DE GUEZ","J,M BAZIRE",{"$f":"ROWS($1:16)","v":16}]
[null,null,"ALSONN DE GUEZ ","J,M BAZIRE",{"$f":"ROWS($1:17)","v":17}]
[null,null,"ALTO DU LYS","J,L,BIGEON",{"$f":"ROWS($1:18)","v":18}]
[null,null,"AMADEUS DES OBEAUX","D,BEKAERT",{"$f":"ROWS($1:19)","v":19}]
[null,null,"AMI","Y.A BRIAND",{"$f":"ROWS($1:20)","v":20}]
[null,null,"AMSTRIONG JET","D,BEKAERT",{"$f":"ROWS($1:21)","v":21}]
[null,null,"ANAKIT DU TAY","D,BONNE",{"$f":"ROWS($1:22)","v":22}]
[null,null,"ANGE DE LUNE","M ABRIVARD",{"$f":"ROWS($1:23)","v":23}]
[null,null,"ANGE DU PALAIS","P,BELLOCHE",{"$f":"ROWS($1:24)","v":24}]
[null,null,"ANGEL ROCK","F.LEBLANC",{"$f":"ROWS($1:25)","v":25}]
[null,null,"ANNA MIX","F.LEBLANC",{"$f":"ROWS($1:26)","v":26}]
[null,null,"ANTILLAISE DE MAI ","J,L,BIGEON",{"$f":"ROWS($1:27)","v":27}]
[null,null,"ANZI DES LIARDS","D,BEKAERT",{"$f":"ROWS($1:28)","v":28}]
[null,null,"AQUITAINE D'ARON ","F.LEBLANC",{"$f":"ROWS($1:29)","v":29}]
[null,null,"ARDENTE DU CLOS","M ABRIVARD",{"$f":"ROWS($1:30)","v":30}]
[null,null,"AREZZO VICI","Y.A BRIAND",{"$f":"ROWS($1:31)","v":31}]
[null,null,"ARKINGTON DREAM","PH.ALLAIRE",{"$f":"ROWS($1:32)","v":32}]
[null,null,"ARMESS DE GUEZ","J,M BAZIRE",{"$f":"ROWS($1:33)","v":33}]
[null,null,"ARTISTE DE JOUDES","PH.ALLAIRE",{"$f":"ROWS($1:34)","v":34}]
[null,null,"AS DE MUZE","T,DUVALDESTIN",{"$f":"ROWS($1:35)","v":35}]
[null,null,"AS D'URFIST","F.LEBLANC",{"$f":"ROWS($1:36)","v":36}]
[null,null,"ASHOKA","J,B BOSSUET",{"$f":"ROWS($1:37)","v":37}]
[null,null,"ASTOR DE ROZOY","T,DUVALDESTIN",{"$f":"ROWS($1:38)","v":38}]
[null,null,"ASTOR DU QUENNE","S,GUARATO",{"$f":"ROWS($1:39)","v":39}]
[null,null,"ATHENA DES RAVAUX","S,GUARATO",{"$f":"ROWS($1:40)","v":40}]
[null,null,"ATTACUS","S,GUARATO",{"$f":"ROWS($1:41)","v":41}]
[null,null,"ATTILA BERRY","J,M BAZIRE",{"$f":"ROWS($1:42)","v":42}]
[null,null,"AUBRION DU GERS","J,M BAZIRE",{"$f":"ROWS($1:43)","v":43}]
[null,null,"AUCH","C,BIGEON",{"$f":"ROWS($1:44)","v":44}]
[null,null,"AUFOR DE MIRE ","C,BIGEON",{"$f":"ROWS($1:45)","v":45}]
[null,null,"AULYNX DIANY","M ABRIVARD",{"$f":"ROWS($1:46)","v":46}]
[null,null,"AUSONE DU KASTEL","E ALLARD",{"$f":"ROWS($1:47)","v":47}]
[null,null,"AZALEE DE BOMO","L.ABRIVARD",{"$f":"ROWS($1:48)","v":48}]
[null,null,"AZARO D'EVA","J,M BAZIRE",{"$f":"ROWS($1:49)","v":49}]
[null,null,"AZUR DES GESVRES","Y.A BRIAND",{"$f":"ROWS($1:50)","v":50}]
[null,null,"BABY HAUFOIOR","C,BIGEON",{"$f":"ROWS($1:51)","v":51}]
[null,null,"BABYLONE SEVEN","J,M BAZIRE",{"$f":"ROWS($1:52)","v":52}]
[null,null,"BACCARAT DU LEARD","F.LEBLANC",{"$f":"ROWS($1:53)","v":53}]
[null,null,"BAHAMAS","L.ABRIVARD",{"$f":"ROWS($1:54)","v":54}]
[null,null,"BAHIZ DE FLORANGE ","C,BIGEON",{"$f":"ROWS($1:55)","v":55}]
[null,null,"BALA?TINE MAX","D,BONNE",{"$f":"ROWS($1:56)","v":56}]
[null,null,"BALTIC CHARM","S,GUARATO",{"$f":"ROWS($1:57)","v":57}]
[null,null,"BANJO DE LA NOEMIE","PH.BOUTIN",{"$f":"ROWS($1:58)","v":58}]
[null,null,"BARACK","L.ABRIVARD",{"$f":"ROWS($1:59)","v":59}]
[null,null,"BARAKA D'HENLOU","PH.ALLAIRE",{"$f":"ROWS($1:60)","v":60}]
[null,null,"BARAKA MAJYC","P,BELLOCHE",{"$f":"ROWS($1:61)","v":61}]
[null,null,"BARBARELLA","S,GUARATO",{"$f":"ROWS($1:62)","v":62}]
[null,null,"BARI","L.ABRIVARD",{"$f":"ROWS($1:63)","v":63}]
[null,null,"BARJAL","F,ANNNE",{"$f":"ROWS($1:64)","v":64}]
[null,null,"BARON DU CHENE","F.LEBLANC",{"$f":"ROWS($1:65)","v":65}]
[null,null,"BARRIO JOSSELYN ","J,M BAZIRE",{"$f":"ROWS($1:66)","v":66}]
[null,null,"BATTANT DU CEBE","F.LEBLANC",{"$f":"ROWS($1:67)","v":67}]
[null,null,"BAULOISE HAUFOR","C,BIGEON",{"$f":"ROWS($1:68)","v":68}]
[null,null,"BAYERN","Y.A BRIAND",{"$f":"ROWS($1:69)","v":69}]
[null,null,"BAZAKI SEVEN","JM BAUDOIN ",{"$f":"ROWS($1:70)","v":70}]
[null,null,"BE BOP HAUFOR","C,BIGEON",{"$f":"ROWS($1:71)","v":71}]
[null,null,"BE BOP MESLOIS","P,BELLOCHE",{"$f":"ROWS($1:72)","v":72}]
[null,null,"BE MINE DE HOUELLE","F.LEBLANC",{"$f":"ROWS($1:73)","v":73}]
[null,null,"BEAU DE GRIMOULT","F,ANNNE",{"$f":"ROWS($1:74)","v":74}]
[null,null,"BEAU GAMIN","S,GUARATO",{"$f":"ROWS($1:75)","v":75}]
[null,null,"BEAUTE DE BAILLY","B.BOURGOIN",{"$f":"ROWS($1:76)","v":76}]
[null,null,"BEAUTIFUL RIVER","S,GUARATO",{"$f":"ROWS($1:77)","v":77}]
[null,null,"BEBERT EXPRESS","J,B BOSSUET",{"$f":"ROWS($1:78)","v":78}]
[null,null,"BEGUION MESLOIS","P,BELLOCHE",{"$f":"ROWS($1:79)","v":79}]
[null,null,"BEL AVIS","J,M BAZIRE",{"$f":"ROWS($1:80)","v":80}]
[null,null,"BEL URZY","L.ABRIVARD",{"$f":"ROWS($1:81)","v":81}]
[null,null,"BELEBRINE","Y.A BRIAND",{"$f":"ROWS($1:82)","v":82}]
[null,null,"BELIEVE SEVEN ","J,M BAZIRE",{"$f":"ROWS($1:83)","v":83}]
[null,null,"BELINA JOSSELYN","J,M BAZIRE",{"$f":"ROWS($1:84)","v":84}]
[null,null,"BELINDA DU SDESTIN","D,BONNE",{"$f":"ROWS($1:85)","v":85}]
[null,null,"BELLAYA","F,ANNNE",{"$f":"ROWS($1:86)","v":86}]
[null,null,"BELLE BAULOISE","J,L,BIGEON",{"$f":"ROWS($1:87)","v":87}]
[null,null,"BELLE KATIE","J,M BAZIRE",{"$f":"ROWS($1:88)","v":88}]
[null,null,"BELLISSIMAFRANCE","M ABRIVARD",{"$f":"ROWS($1:89)","v":89}]
[null,null,"BERLITZ SEVEN","J,M BAZIRE",{"$f":"ROWS($1:90)","v":90}]
[null,null,"BEST HAUFOR","C,BIGEON",{"$f":"ROWS($1:91)","v":91}]
[null,null,"BEST OF JETS","JM BAUDOIN ",{"$f":"ROWS($1:92)","v":92}]
[null,null,"BIG KAISER","F,ANNNE",{"$f":"ROWS($1:93)","v":93}]
[null,null,"BIJOU DE CARSI","F.LEBLANC",{"$f":"ROWS($1:94)","v":94}]
[null,null,"BILFIE DE GUEZ ","J,M BAZIRE",{"$f":"ROWS($1:95)","v":95}]
[null,null,"BILIBILI","L.ABRIVARD",{"$f":"ROWS($1:96)","v":96}]
[null,null,"BILL BONNETIERE","D,BONNE",{"$f":"ROWS($1:97)","v":97}]
[null,null,"BILY DE GUERINIERE","M ABRIVARD",{"$f":"ROWS($1:98)","v":98}]
[null,null,"BIP BIP¨DE GUEZ","J,M BAZIRE",{"$f":"ROWS($1:99)","v":99}]
[null,null,"BIRD PARKER","PH.ALLAIRE",{"$f":"ROWS($1:100)","v":100}]
[null,null,"BIRGIT MENUET ","M ABRIVARD",{"$f":"ROWS($1:101)","v":101}]
[null,null,"BISCUIT DLAVERA","J,L,BIGEON",{"$f":"ROWS($1:102)","v":102}]
[null,null,"BIXENTA DU GERS","J,M BAZIRE",{"$f":"ROWS($1:103)","v":103}]
[null,null,"BLACK ATOUT","F.LEBLANC",{"$f":"ROWS($1:104)","v":104}]
[null,null,"BLACK D'ARJEANC","S,GUARATO",{"$f":"ROWS($1:105)","v":105}]
[null,null,"BLACK DU BOCAGE","Y.A BRIAND",{"$f":"ROWS($1:106)","v":106}]
[null,null,"BLAISE DU VIVIER","Y.A BRIAND",{"$f":"ROWS($1:107)","v":107}]
[null,null,"BLASON D'ECAJEUL","C,BIGEON",{"$f":"ROWS($1:108)","v":108}]
[null,null,"BLASON DU CEBE","F.LEBLANC",{"$f":"ROWS($1:109)","v":109}]
[null,null,"BLE DU GERS","S,GUARATO",{"$f":"ROWS($1:110)","v":110}]
[null,null,"BLUE GRASS","PH.ALLAIRE",{"$f":"ROWS($1:111)","v":111}]
[null,null,"BLUE ISLAND","Y.A BRIAND",{"$f":"ROWS($1:112)","v":112}]
[null,null,"BOEING DU BOCAGE","F.LEBLANC",{"$f":"ROWS($1:113)","v":113}]
[null,null,"BOHO PERRINE","J,L,BIGEON",{"$f":"ROWS($1:114)","v":114}]
[null,null,"BOIG BOSS D\"ARIANE","D,BETHOUART",{"$f":"ROWS($1:115)","v":115}]
[null,null,"BOLD EAGLE","S,GUARATO",{"$f":"ROWS($1:116)","v":116}]
[null,null,"BOLERO DU LEVANT","D,BETHOUART",{"$f":"ROWS($1:117)","v":117}]
[null,null,"BOLERO LOVE","S,GUARATO",{"$f":"ROWS($1:118)","v":118}]
[null,null,"BOLIDO BELLO","L.ABRIVARD",{"$f":"ROWS($1:119)","v":119}]
[null,null,"BON GRAIN TIVOLI","D,BONNE",{"$f":"ROWS($1:120)","v":120}]
[null,null,"BONHEUR D'OCCAGNES","S,GUARATO",{"$f":"ROWS($1:121)","v":121}]
[null,null,"BOOSTER WINNER","S,GUARATO",{"$f":"ROWS($1:122)","v":122}]
[null,null,"BORA BUISSONAY","F,ANNNE",{"$f":"ROWS($1:123)","v":123}]
[null,null,"BOSS DU MELEUC","Y.A BRIAND",{"$f":"ROWS($1:124)","v":124}]
[null,null,"BOURBON SOMOLLI","T,DUVALDESTIN",{"$f":"ROWS($1:125)","v":125}]
[null,null,"BRAKA PRIDE","J,L,BIGEON",{"$f":"ROWS($1:126)","v":126}]
[null,null,"BRASIL DE BAILLY","B.BOURGOIN",{"$f":"ROWS($1:127)","v":127}]
[null,null,"BREEDER'S CUP","P,BELLOCHE",{"$f":"ROWS($1:128)","v":128}]
[null,null,"BRENNUS SEVEN","J,M BAZIRE",{"$f":"ROWS($1:129)","v":129}]
[null,null,"BRIAC DARK","F,ANNNE",{"$f":"ROWS($1:130)","v":130}]
[null,null,"BRINDILLE DE MAI","F,ANNNE",{"$f":"ROWS($1:131)","v":131}]
[null,null,"BRISE DE L'ALBA","W,BIGEON",{"$f":"ROWS($1:132)","v":132}]
[null,null,"BRONCO VINCI ","J,L,BIGEON",{"$f":"ROWS($1:133)","v":133}]
[null,null,"BRUNE DES FORGES","S,GUARATO",{"$f":"ROWS($1:134)","v":134}]
[null,null,"BRUT DE LA COTE ","S,GUARATO",{"$f":"ROWS($1:135)","v":135}]
[null,null,"BRUTUS DE BAILLY","B.BOURGOIN",{"$f":"ROWS($1:136)","v":136}]
[null,null,"BUGSY MALONE","PH.ALLAIRE",{"$f":"ROWS($1:137)","v":137}]
[null,null,"BUSTER DE BEAUFOUR","D,BONNE",{"$f":"ROWS($1:138)","v":138}]
[null,null,"CACTUS D'YVEL","C,BIGEON",{"$f":"ROWS($1:139)","v":139}]
[null,null,"CADENCE","F.LEBLANC",{"$f":"ROWS($1:140)","v":140}]
[null,null,"CADET","D,BONNE",{"$f":"ROWS($1:141)","v":141}]
[null,null,"CAGNARD DE BETTON","J,L,BIGEON",{"$f":"ROWS($1:142)","v":142}]
[null,null,"CAHAL DES RIOULTS","PH.ALLAIRE",{"$f":"ROWS($1:143)","v":143}]
[null,null,"CAID GRIFF","S,GUARATO",{"$f":"ROWS($1:144)","v":144}]
[null,null,"CALASKA DE GUEZ","J,M BAZIRE",{"$f":"ROWS($1:145)","v":145}]
[null,null,"CALEO JOSSELYN","F.LEBLANC",{"$f":"ROWS($1:146)","v":146}]
[null,null,"CALINE DES LOYAUX","M ABRIVARD",{"$f":"ROWS($1:147)","v":147}]
[null,null,"CALINE DES PLACES","F.LEBLANC",{"$f":"ROWS($1:148)","v":148}]
[null,null,"CALL ME QUICK","F.LEBLANC",{"$f":"ROWS($1:149)","v":149}]
[null,null,"CALY LOULOU","M ABRIVARD",{"$f":"ROWS($1:150)","v":150}]
[null,null,"CAMPO JOSSELYN","L.ABRIVARD",{"$f":"ROWS($1:151)","v":151}]
[null,null,"CANADIEN D'AM","F.LEBLANC",{"$f":"ROWS($1:152)","v":152}]
[null,null,"CANDIDAT D'ORTIGE","F.LEBLANC",{"$f":"ROWS($1:153)","v":153}]
[null,null,"CANINE JONES","F.LEBLANC",{"$f":"ROWS($1:154)","v":154}]
[null,null,"CANISSE DE GUEZ ","J,M BAZIRE",{"$f":"ROWS($1:155)","v":155}]
[null,null,"CAORCHES","T,DUVALDESTIN",{"$f":"ROWS($1:156)","v":156}]
[null,null,"CAP MATYSS","F.LEBLANC",{"$f":"ROWS($1:157)","v":157}]
[null,null,"CAPITAINE France","W,BIGEON",{"$f":"ROWS($1:158)","v":158}]
[null,null,"CAPONE FACE","F.LEBLANC",{"$f":"ROWS($1:159)","v":159}]
[null,null,"CAPRICE DE BISSON ","F,ANNNE",{"$f":"ROWS($1:160)","v":160}]
[null,null,"CAPRY SLY","T,DUVALDESTIN",{"$f":"ROWS($1:161)","v":161}]
[null,null,"CARAT D'HAUFOR","C,BIGEON",{"$f":"ROWS($1:162)","v":162}]
[null,null,"CARAT WILLIAMS","S,GUARATO",{"$f":"ROWS($1:163)","v":163}]
[null,null,"CARAVELLE","L.ABRIVARD",{"$f":"ROWS($1:164)","v":164}]
[null,null,"CARIOCA DE LOU","L.ABRIVARD",{"$f":"ROWS($1:165)","v":165}]
[null,null,"CARLA GRIFF","S,GUARATO",{"$f":"ROWS($1:166)","v":166}]
[null,null,"CARLA LOVE","J,M BAZIRE",{"$f":"ROWS($1:167)","v":167}]
[null,null,"CARLO DE CARSI","JM BAUDOIN ",{"$f":"ROWS($1:168)","v":168}]
[null,null,"CAROLYN BARBES","C,BIGEON",{"$f":"ROWS($1:169)","v":169}]
[null,null,"CASENCE DES GIRES","M ABRIVARD",{"$f":"ROWS($1:170)","v":170}]
[null,null,"CASH DE FAEL","T,DUVALDESTIN",{"$f":"ROWS($1:171)","v":171}]
[null,null,"CASTAFIORE ","J,B BOSSUET",{"$f":"ROWS($1:172)","v":172}]
[null,null,"CASTEL BLACK","J,L,BIGEON",{"$f":"ROWS($1:173)","v":173}]
[null,null,"CASTENANGO","Y.A BRIAND",{"$f":"ROWS($1:174)","v":174}]
[null,null,"CASTILLE HAUFOR","C,BIGEON",{"$f":"ROWS($1:175)","v":175}]
[null,null,"CATCG ONE","S,GUARATO",{"$f":"ROWS($1:176)","v":176}]
[null,null,"CAVALLERIA","S,GUARATO",{"$f":"ROWS($1:177)","v":177}]
[null,null,"CAYENNE DE HOUELLE ","F.LEBLANC",{"$f":"ROWS($1:178)","v":178}]
[null,null,"CAZAUBON DAIRPET","C,BIGEON",{"$f":"ROWS($1:179)","v":179}]
[null,null,"CEDEA JOSSELYN","J,M BAZIRE",{"$f":"ROWS($1:180)","v":180}]
[null,null,"CELEBRE  DU RABUTIN","Y.A BRIAND",{"$f":"ROWS($1:181)","v":181}]
[null,null,"CELINIA DU PONT","D,BONNE",{"$f":"ROWS($1:182)","v":182}]
[null,null,"CENTAUREE DE BLAY","D,BONNE",{"$f":"ROWS($1:183)","v":183}]
[null,null,"CERE JOSSELYN","T,DUVALDESTIN",{"$f":"ROWS($1:184)","v":184}]
[null,null,"CERES D'ORTIGE","F.LEBLANC",{"$f":"ROWS($1:185)","v":185}]
[null,null,"CHAMARA DE GUEZ ","J,M BAZIRE",{"$f":"ROWS($1:186)","v":186}]
[null,null,"CHAN CE","F,ANNNE",{"$f":"ROWS($1:187)","v":187}]
[null,null,"CHANCELIERE CITRUS","L.ABRIVARD",{"$f":"ROWS($1:188)","v":188}]
[null,null,"CHANELLE DU KASTEL","E ALLARD",{"$f":"ROWS($1:189)","v":189}]
[null,null,"CHANT DES SIRENES","J,B BOSSUET",{"$f":"ROWS($1:190)","v":190}]
[null,null,"CHANTELOUP DU LIGNERIE","D,BONNE",{"$f":"ROWS($1:191)","v":191}]
[null,null,"CHARLY DU NOYER","PH.ALLAIRE",{"$f":"ROWS($1:192)","v":192}]
[null,null,"CHARMANT FIERTE","PH.BOUTIN",{"$f":"ROWS($1:193)","v":193}]
[null,null,"CHARMEUR DE BREVOL","Y.A BRIAND",{"$f":"ROWS($1:194)","v":194}]
[null,null,"CHARMEUSE DU CORTA","T,DUVALDESTIN",{"$f":"ROWS($1:195)","v":195}]
[null,null,"CHARMEUSE ROYALE","M ABRIVARD",{"$f":"ROWS($1:196)","v":196}]
[null,null,"CHAYANE DE CALVI","F,ANNNE",{"$f":"ROWS($1:197)","v":197}]
[null,null,"CHEF DAIRPET","C,BIGEON",{"$f":"ROWS($1:198)","v":198}]
[null,null,"CHEIKH DE RETZ","Y.A BRIAND",{"$f":"ROWS($1:199)","v":199}]
[null,null,"CHELSEA DES CHAMPS","D,BONNE",{"$f":"ROWS($1:200)","v":200}]
[null,null,"CHERIE MY LOVE","L.ABRIVARD",{"$f":"ROWS($1:201)","v":201}]
[null,null,"CHERIE QUICK","F.LEBLANC",{"$f":"ROWS($1:202)","v":202}]
[null,null,"CHERRY CADENCE","E ALLARD",{"$f":"ROWS($1:203)","v":203}]
[null,null,"CHIPIE DU VIVIER","T,DUVALDESTIN",{"$f":"ROWS($1:204)","v":204}]
[null,null,"CHIPIE GALI","F,ANNNE",{"$f":"ROWS($1:205)","v":205}]
[null,null,"CHO OYU VEDAQUAIS (d4)","T,DUVALDESTIN",{"$f":"ROWS($1:206)","v":206}]
[null,null,"CHOCO DE GUEZ ","J,M BAZIRE",{"$f":"ROWS($1:207)","v":207}]
[null,null,"CHOIX DES ARMES","F.LEBLANC",{"$f":"ROWS($1:208)","v":208}]
[null,null,"CHORISTE","JM BAUDOIN ",{"$f":"ROWS($1:209)","v":209}]
[null,null,"CHRISTINA ","Y.A BRIAND",{"$f":"ROWS($1:210)","v":210}]
[null,null,"CIALOTTA","M ABRIVARD",{"$f":"ROWS($1:211)","v":211}]
[null,null,"CICERON DU CEBA","M ABRIVARD",{"$f":"ROWS($1:212)","v":212}]
[null,null,"CIEL D'AZUR","F.LEBLANC",{"$f":"ROWS($1:213)","v":213}]
[null,null,"CIGALE CASTELETS","S,GUARATO",{"$f":"ROWS($1:214)","v":214}]
[null,null,"CIRCE LA CHESNAIE","S,GUARATO",{"$f":"ROWS($1:215)","v":215}]
[null,null,"CIRKA JIOSSELYN","F,ANNNE",{"$f":"ROWS($1:216)","v":216}]
[null,null,"CIRRUS ATOUT","S,GUARATO",{"$f":"ROWS($1:217)","v":217}]
[null,null,"CITY GIRL","D,BONNE",{"$f":"ROWS($1:218)","v":218}]
[null,null,"CLARA SAUTONNE","M ABRIVARD",{"$f":"ROWS($1:219)","v":219}]
[null,null,"CLASS HAUFOR","C,BIGEON",{"$f":"ROWS($1:220)","v":220}]
[null,null,"CLASSIC HAUFOR","C,BIGEON",{"$f":"ROWS($1:221)","v":221}]
[null,null,"CLASSIC WAY","S,GUARATO",{"$f":"ROWS($1:222)","v":222}]
[null,null,"CLEANGAME","S,GUARATO",{"$f":"ROWS($1:223)","v":223}]
[null,null,"CLEF DE FA","M ABRIVARD",{"$f":"ROWS($1:224)","v":224}]
[null,null,"CLICHE MESLOIS","P,BELLOCHE",{"$f":"ROWS($1:225)","v":225}]
[null,null,"CLOSE TO ME","J,L,BIGEON",{"$f":"ROWS($1:226)","v":226}]
[null,null,"CLYDE DE LA ROCHE ","D,BONNE",{"$f":"ROWS($1:227)","v":227}]
[null,null,"COACH FRANBLEU","F.LEBLANC",{"$f":"ROWS($1:228)","v":228}]
[null,null,"COCHISE GRIFF","S,GUARATO",{"$f":"ROWS($1:229)","v":229}]
[null,null,"COCKTAIL MY LOVE","L.ABRIVARD",{"$f":"ROWS($1:230)","v":230}]
[null,null,"COCKTAIL WINNER","L.ABRIVARD",{"$f":"ROWS($1:231)","v":231}]
[null,null,"COCONUT CITRUS","L.ABRIVARD",{"$f":"ROWS($1:232)","v":232}]
[null,null,"COKTAIL MESLOIS","P,BELLOCHE",{"$f":"ROWS($1:233)","v":233}]
[null,null,"COLONEL ","J,M BAZIRE",{"$f":"ROWS($1:234)","v":234}]
[null,null,"COMME DAB","D,BONNE",{"$f":"ROWS($1:235)","v":235}]
[null,null,"CONCERTO DU RUEL ","F,ANNNE",{"$f":"ROWS($1:236)","v":236}]
[null,null,"CONCHITANA JENILOU","S,GUARATO",{"$f":"ROWS($1:237)","v":237}]
[null,null,"CONNECTICUT","Y.A BRIAND",{"$f":"ROWS($1:238)","v":238}]
[null,null,"CORAL SEA","L.ABRIVARD",{"$f":"ROWS($1:239)","v":239}]
[null,null,"CORNFLOWER JAC","Y.A BRIAND",{"$f":"ROWS($1:240)","v":240}]
[null,null,"CORONA DE JOUDES ","T,DUVALDESTIN",{"$f":"ROWS($1:241)","v":241}]
[null,null,"COSTA HAUFOR","C,BIGEON",{"$f":"ROWS($1:242)","v":242}]
[null,null,"COUDRAS DE BELLOUET ","L.ABRIVARD",{"$f":"ROWS($1:243)","v":243}]
[null,null,"COULEUR DE STAR","Y.A BRIAND",{"$f":"ROWS($1:244)","v":244}]
[null,null,"COURAGEUSE","P,BELLOCHE",{"$f":"ROWS($1:245)","v":245}]
[null,null,"COVA JOSSELYN","J,M BAZIRE",{"$f":"ROWS($1:246)","v":246}]
[null,null,"COYOTE DE GUEZ ","J,M BAZIRE",{"$f":"ROWS($1:247)","v":247}]
[null,null,"CRACK THE BEST ","F.LEBLANC",{"$f":"ROWS($1:248)","v":248}]
[null,null,"CRAZY CHARM","D,BONNE",{"$f":"ROWS($1:249)","v":249}]
[null,null,"CRISTAL MONEY","T,DUVALDESTIN",{"$f":"ROWS($1:250)","v":250}]
[null,null,"CRISTAL RIVER","S,GUARATO",{"$f":"ROWS($1:251)","v":251}]
[null,null,"CROKS DE GUEZ","J,M BAZIRE",{"$f":"ROWS($1:252)","v":252}]
[null,null,"CUPIDON DU VIVIER","S,GUARATO",{"$f":"ROWS($1:253)","v":253}]
[null,null,"CYLEE NEVELE","PH.ALLAIRE",{"$f":"ROWS($1:254)","v":254}]
[null,null,"CYPRIN D'ERABLE","Y.A BRIAND",{"$f":"ROWS($1:255)","v":255}]
[null,null,"CYRANO DU CHATELET","F.LEBLANC",{"$f":"ROWS($1:256)","v":256}]
[null,null,"CYRANO DU CHATELET","Y.A BRIAND",{"$f":"ROWS($1:257)","v":257}]
[null,null,"DA VINCI BOND","S,GUARATO",{"$f":"ROWS($1:258)","v":258}]
[null,null,"DADDY CASH","PH.ALLAIRE",{"$f":"ROWS($1:259)","v":259}]
[null,null,"DAIDA DE VANDEL","L.ABRIVARD",{"$f":"ROWS($1:260)","v":260}]
[null,null,"DAILY HAUFOR","C,BIGEON",{"$f":"ROWS($1:261)","v":261}]
[null,null,"DAILY JET","F.LEBLANC",{"$f":"ROWS($1:262)","v":262}]
[null,null,"DALABAMA","L.ABRIVARD",{"$f":"ROWS($1:263)","v":263}]
[null,null,"DALIXORIA","S,GUARATO",{"$f":"ROWS($1:264)","v":264}]
[null,null,"DALOA JOSSELYN","J,M BAZIRE",{"$f":"ROWS($1:265)","v":265}]
[null,null,"DALTON D'EBANE","Y.A BRIAND",{"$f":"ROWS($1:266)","v":266}]
[null,null,"DAME DE BELLOUET ","L.ABRIVARD",{"$f":"ROWS($1:267)","v":267}]
[null,null,"D'AMOUR DE NOUVELLE","F.LEBLANC",{"$f":"ROWS($1:268)","v":268}]
[null,null,"DANAE DE LA FRETTE","F.LEBLANC",{"$f":"ROWS($1:269)","v":269}]
[null,null,"DANDY WIXY","Y.A BRIAND",{"$f":"ROWS($1:270)","v":270}]
[null,null,"DANSE BARBES","D,BONNE",{"$f":"ROWS($1:271)","v":271}]
[null,null,"DANSE CADENCE","E ALLARD",{"$f":"ROWS($1:272)","v":272}]
[null,null,"DANSE D'ETANG","C,BIGEON",{"$f":"ROWS($1:273)","v":273}]
[null,null,"DARCY DE TOUCHYVON","F.LEBLANC",{"$f":"ROWS($1:274)","v":274}]
[null,null,"DARD ROC","P,BELLOCHE",{"$f":"ROWS($1:275)","v":275}]
[null,null,"DARLING  HAUFOR","C,BIGEON",{"$f":"ROWS($1:276)","v":276}]
[null,null,"DARLING BERRY","J,M BAZIRE",{"$f":"ROWS($1:277)","v":277}]
[null,null,"DARLING DE RIEUX","S,GUARATO",{"$f":"ROWS($1:278)","v":278}]
[null,null,"DARWIN WAZA","S,GUARATO",{"$f":"ROWS($1:279)","v":279}]
[null,null,"DAWANA","PH.ALLAIRE",{"$f":"ROWS($1:280)","v":280}]
[null,null,"DAXIA PIERJI","Y.A BRIAND",{"$f":"ROWS($1:281)","v":281}]
[null,null,"DAYANA BERRY","J,M BAZIRE",{"$f":"ROWS($1:282)","v":282}]
[null,null,"DAYTONA JET","F,ANNNE",{"$f":"ROWS($1:283)","v":283}]
[null,null,"DAZIBALO","PH.ALLAIRE",{"$f":"ROWS($1:284)","v":284}]
[null,null,"DE HOUELLE","F.LEBLANC",{"$f":"ROWS($1:285)","v":285}]
[null,null,"DEAL PARFAIT","F.LEBLANC",{"$f":"ROWS($1:286)","v":286}]
[null,null,"DECLICE DE HOUELLE ","F.LEBLANC",{"$f":"ROWS($1:287)","v":287}]
[null,null,"DEDICATE OF CITRUS","L.ABRIVARD",{"$f":"ROWS($1:288)","v":288}]
[null,null,"DEESSE GUERON","F,ANNNE",{"$f":"ROWS($1:289)","v":289}]
[null,null,"DEFI YHE BEST ","Y.A BRIAND",{"$f":"ROWS($1:290)","v":290}]
[null,null,"DEL PERO DE LOU","L.ABRIVARD",{"$f":"ROWS($1:291)","v":291}]
[null,null,"DELICIEUX DU CEBE","F.LEBLANC",{"$f":"ROWS($1:292)","v":292}]
[null,null,"DELINDA","J,M BAZIRE",{"$f":"ROWS($1:293)","v":293}]
[null,null,"DENEBOLA TEGE","D,BONNE",{"$f":"ROWS($1:294)","v":294}]
[null,null,"DENVER DU CHATELET","Y.A BRIAND",{"$f":"ROWS($1:295)","v":295}]
[null,null,"DERBY DU BIWETZ","F.LEBLANC",{"$f":"ROWS($1:296)","v":296}]
[null,null,"DERBY DU BOURG","J,L,BIGEON",{"$f":"ROWS($1:297)","v":297}]
[null,null,"DERBY WINNER","L.ABRIVARD",{"$f":"ROWS($1:298)","v":298}]
[null,null,"DESERT STYLE","D,BONNE",{"$f":"ROWS($1:299)","v":299}]
[null,null,"DESIGN D'HERFRAIE","F.LEBLANC",{"$f":"ROWS($1:300)","v":300}]
[null,null,"DESIR PARTAGE","J,M BAZIRE",{"$f":"ROWS($1:301)","v":301}]
[null,null,"DESIREE DES FORGES","S,GUARATO",{"$f":"ROWS($1:302)","v":302}]
[null,null,"DESTIN D'HAUFOR","C,BIGEON",{"$f":"ROWS($1:303)","v":303}]
[null,null,"DESTIN VENESI","F.LEBLANC",{"$f":"ROWS($1:304)","v":304}]
[null,null,"DESTINATION RIO ","JM BAUDOIN ",{"$f":"ROWS($1:305)","v":305}]
[null,null,"DETIN DES LOYAUX","M ABRIVARD",{"$f":"ROWS($1:306)","v":306}]
[null,null,"DEUX AMOURS","D,BONNE",{"$f":"ROWS($1:307)","v":307}]
[null,null,"DEVISE DU VIVIER","L.ABRIVARD",{"$f":"ROWS($1:308)","v":308}]
[null,null,"DEXTER CHATHO","C,BIGEON",{"$f":"ROWS($1:309)","v":309}]
[null,null,"DHARMANGA","J,M BAZIRE",{"$f":"ROWS($1:310)","v":310}]
[null,null,"DHIKTI VEDAQUAIS","PH.ALLAIRE",{"$f":"ROWS($1:311)","v":311}]
[null,null,"DIABLE DU VIVIER","S,GUARATO",{"$f":"ROWS($1:312)","v":312}]
[null,null,"DIABLO DU NOYER","W,BIGEON",{"$f":"ROWS($1:313)","v":313}]
[null,null,"DIADEME DU CEBE","F.LEBLANC",{"$f":"ROWS($1:314)","v":314}]
[null,null,"DIAMANT NONANTAIS","C,BIGEON",{"$f":"ROWS($1:315)","v":315}]
[null,null,"DIAMANTINO","C,BIGEON",{"$f":"ROWS($1:316)","v":316}]
[null,null,"DIAMOND CROWN","S,GUARATO",{"$f":"ROWS($1:317)","v":317}]
[null,null,"DIANE D'HAUFOR","C,BIGEON",{"$f":"ROWS($1:318)","v":318}]
[null,null,"DIANE DU LEVANT","D,BETHOUART",{"$f":"ROWS($1:319)","v":319}]
[null,null,"DIEGO BAROSSO ","B.BOURGOIN",{"$f":"ROWS($1:320)","v":320}]
[null,null,"DIEGO DE BANVILLE ","Y.A BRIAND",{"$f":"ROWS($1:321)","v":321}]
[null,null,"DIEGO DE LA CRIERE","D,BONNE",{"$f":"ROWS($1:322)","v":322}]
[null,null,"DIEGO SQAUTONNE","M ABRIVARD",{"$f":"ROWS($1:323)","v":323}]
[null,null,"DIFFERENT CHARM","S,GUARATO",{"$f":"ROWS($1:324)","v":324}]
[null,null,"DINO DU GOUTIER","F.LEBLANC",{"$f":"ROWS($1:325)","v":325}]
[null,null,"DIONYS DES LIARDS","D,BEKAERT",{"$f":"ROWS($1:326)","v":326}]
[null,null,"DIPLOMATE D'AM","T,DUVALDESTIN",{"$f":"ROWS($1:327)","v":327}]
[null,null,"DIRECT WAY","PH.ALLAIRE",{"$f":"ROWS($1:328)","v":328}]
[null,null,"DIRECTION PARIS","D,BONNE",{"$f":"ROWS($1:329)","v":329}]
[null,null,"DIS MOI DE HOUELLE","F.LEBLANC",{"$f":"ROWS($1:330)","v":330}]
[null,null,"DIS MOI TOUT","Y.A BRIAND",{"$f":"ROWS($1:331)","v":331}]
[null,null,"DISCOVA","M ABRIVARD",{"$f":"ROWS($1:332)","v":332}]
[null,null,"DIVA CHARENTAISE","JM BAUDOIN ",{"$f":"ROWS($1:333)","v":333}]
[null,null,"DIVA DU MOUCHEL","F.LEBLANC",{"$f":"ROWS($1:334)","v":334}]
[null,null,"DIVA FRIFF","S,GUARATO",{"$f":"ROWS($1:335)","v":335}]
[null,null,"DIVINE MESLOISE","P,BELLOCHE",{"$f":"ROWS($1:336)","v":336}]
[null,null,"DIVINE PROVIDENCE","F.LEBLANC",{"$f":"ROWS($1:337)","v":337}]
[null,null,"DIVINE SEVEN","J,M BAZIRE",{"$f":"ROWS($1:338)","v":338}]
[null,null,"DIVINE WEAPON","Y.A BRIAND",{"$f":"ROWS($1:339)","v":339}]
[null,null,"DJANGO DU BANNEY","F.LEBLANC",{"$f":"ROWS($1:340)","v":340}]
[null,null,"DJANGO RIFF","PH.ALLAIRE",{"$f":"ROWS($1:341)","v":341}]
[null,null,"DJANGO WINNER","L.ABRIVARD",{"$f":"ROWS($1:342)","v":342}]
[null,null,"DOCSPEL SEVEN","JM BAUDOIN ",{"$f":"ROWS($1:343)","v":343}]
[null,null,"DOKHA VEDAQUAISE","PH.ALLAIRE",{"$f":"ROWS($1:344)","v":344}]
[null,null,"DOLCE VITA GRIFF","S,GUARATO",{"$f":"ROWS($1:345)","v":345}]
[null,null,"DOLLAR MACKER","PH.ALLAIRE",{"$f":"ROWS($1:346)","v":346}]
[null,null,"DOLLY BIRD","L.ABRIVARD",{"$f":"ROWS($1:347)","v":347}]
[null,null,"DOMINATOR BLOND","J,B BOSSUET",{"$f":"ROWS($1:348)","v":348}]
[null,null,"DON QUICHOTTE","T,DUVALDESTIN",{"$f":"ROWS($1:349)","v":349}]
[null,null,"DON WILLIAMS","E ALLARD",{"$f":"ROWS($1:350)","v":350}]
[null,null,"DONATO PIERJI","T,DUVALDESTIN",{"$f":"ROWS($1:351)","v":351}]
[null,null,"DON'T EXPLAIN","PH.ALLAIRE",{"$f":"ROWS($1:352)","v":352}]
[null,null,"DORGAOS DE GUEZ","J,M BAZIRE",{"$f":"ROWS($1:353)","v":353}]
[null,null,"DORIS DE BAILLY","B.BOURGOIN",{"$f":"ROWS($1:354)","v":354}]
[null,null,"DORIS DES CHAMPS","S,GUARATO",{"$f":"ROWS($1:355)","v":355}]
[null,null,"DORNELLA DE JANZE","C,BIGEON",{"$f":"ROWS($1:356)","v":356}]
[null,null,"DOSTOIEVSKI","J,M BAZIRE",{"$f":"ROWS($1:357)","v":357}]
[null,null,"DOTKA LOIRON","F.LEBLANC",{"$f":"ROWS($1:358)","v":358}]
[null,null,"DOUXOR DE GUEZ ","J,M BAZIRE",{"$f":"ROWS($1:359)","v":359}]
[null,null,"DRAGON DES RACQUES ","L.ABRIVARD",{"$f":"ROWS($1:360)","v":360}]
[null,null,"DRAGON DU FRESNES","L.ABRIVARD",{"$f":"ROWS($1:361)","v":361}]
[null,null,"DRAGUET D'OMBLAIS","M ABRIVARD",{"$f":"ROWS($1:362)","v":362}]
[null,null,"DRAKKAR DELO","L.ABRIVARD",{"$f":"ROWS($1:363)","v":363}]
[null,null,"DRATAR BLOND","J,B BOSSUET",{"$f":"ROWS($1:364)","v":364}]
[null,null,"DREAM CASH","J,M BAZIRE",{"$f":"ROWS($1:365)","v":365}]
[null,null,"DREAM DE FAEL","C,BIGEON",{"$f":"ROWS($1:366)","v":366}]
[null,null,"DREAM DES WARRANS","L.ABRIVARD",{"$f":"ROWS($1:367)","v":367}]
[null,null,"DREAM MASTER","T,DUVALDESTIN",{"$f":"ROWS($1:368)","v":368}]
[null,null,"DREAM STAR ","J,M BAZIRE",{"$f":"ROWS($1:369)","v":369}]
[null,null,"DREAM WORLD","S,GUARATO",{"$f":"ROWS($1:370)","v":370}]
[null,null,"DREAMER DELO","S,GUARATO",{"$f":"ROWS($1:371)","v":371}]
[null,null,"DRIVER CADENCE","E ALLARD",{"$f":"ROWS($1:372)","v":372}]
[null,null,"DROIT AU CŒURS","D,BONNE",{"$f":"ROWS($1:373)","v":373}]
[null,null,"DROLE DE DAME","J,B BOSSUET",{"$f":"ROWS($1:374)","v":374}]
[null,null,"DRYADE DE CHENU","JM BAUDOIN ",{"$f":"ROWS($1:375)","v":375}]
[null,null,"DUBAI UNION","PH.ALLAIRE",{"$f":"ROWS($1:376)","v":376}]
[null,null,"DUC DU GERS","S,GUARATO",{"$f":"ROWS($1:377)","v":377}]
[null,null,"DUCATO BOURBON","F.LEBLANC",{"$f":"ROWS($1:378)","v":378}]
[null,null,"DUCHESSE DE BRTION","M ABRIVARD",{"$f":"ROWS($1:379)","v":379}]
[null,null,"DUNBAR","S,GUARATO",{"$f":"ROWS($1:380)","v":380}]
[null,null,"DURGA DES VALERINS","Y.A BRIAND",{"$f":"ROWS($1:381)","v":381}]
[null,null,"DURZIE","L.ABRIVARD",{"$f":"ROWS($1:382)","v":382}]
[null,null,"DYNASTAR","T,DUVALDESTIN",{"$f":"ROWS($1:383)","v":383}]
[null,null,"DZEUS D'AVIGNERE","L.ABRIVARD",{"$f":"ROWS($1:384)","v":384}]
[null,null,"EASY CASH","PH.ALLAIRE",{"$f":"ROWS($1:385)","v":385}]
[null,null,"EBENE PIYA","D,BONNE",{"$f":"ROWS($1:386)","v":386}]
[null,null,"ECUME DES LOUANGES","B.BOURGOIN",{"$f":"ROWS($1:387)","v":387}]
[null,null,"EDEN","Y.A BRIAND",{"$f":"ROWS($1:388)","v":388}]
[null,null,"EDILE DU GOUTIER","S,GUARATO",{"$f":"ROWS($1:389)","v":389}]
[null,null,"EDSON PERRINE","PH.ALLAIRE",{"$f":"ROWS($1:390)","v":390}]
[null,null,"EGO TURGOT","Y.A BRIAND",{"$f":"ROWS($1:391)","v":391}]
[null,null,"EGON","F.LEBLANC",{"$f":"ROWS($1:392)","v":392}]
[null,null,"EIFFEL TOWER","J,M BAZIRE",{"$f":"ROWS($1:393)","v":393}]
[null,null,"EJAG","B.BOURGOIN",{"$f":"ROWS($1:394)","v":394}]
[null,null,"ELEA MADRIK","W,BIGEON",{"$f":"ROWS($1:395)","v":395}]
[null,null,"ELECTRO BAR ","M ABRIVARD",{"$f":"ROWS($1:396)","v":396}]
[null,null,"ELECTRO CADENCE","E ALLARD",{"$f":"ROWS($1:397)","v":397}]
[null,null,"ELEGANTISSIME","PH.ALLAIRE",{"$f":"ROWS($1:398)","v":398}]
[null,null,"ELEVEN DES PLANS","F.LEBLANC",{"$f":"ROWS($1:399)","v":399}]
[null,null,"ELISIONE MAG","B.BOURGOIN",{"$f":"ROWS($1:400)","v":400}]
[null,null,"ELITE DU MIREL ","F,ANNNE",{"$f":"ROWS($1:401)","v":401}]
[null,null,"ELLINGTON DREAM","PH.ALLAIRE",{"$f":"ROWS($1:402)","v":402}]
[null,null,"ELOVIA BELLA","L.ABRIVARD",{"$f":"ROWS($1:403)","v":403}]
[null,null,"ELTON STAR","Y.A BRIAND",{"$f":"ROWS($1:404)","v":404}]
[null,null,"EMBLEME DE CORDAY","W,BIGEON",{"$f":"ROWS($1:405)","v":405}]
[null,null,"EMBRUN DE MAI","PH.ALLAIRE",{"$f":"ROWS($1:406)","v":406}]
[null,null,"EMOKO MADRIK","F.LEBLANC",{"$f":"ROWS($1:407)","v":407}]
[null,null,"EMPERUER THE BEST ","PH.ALLAIRE",{"$f":"ROWS($1:408)","v":408}]
[null,null,"EMPIRE STATE ","J,M BAZIRE",{"$f":"ROWS($1:409)","v":409}]
[null,null,"ENA DE LAUMAC","F,ANNNE",{"$f":"ROWS($1:410)","v":410}]
[null,null,"ENVIE MESLOISE","P,BELLOCHE",{"$f":"ROWS($1:411)","v":411}]
[null,null,"ENVOLEE DESTINEE","T,DUVALDESTIN",{"$f":"ROWS($1:412)","v":412}]
[null,null,"ENZIO MESLOIS","P,BELLOCHE",{"$f":"ROWS($1:413)","v":413}]
[null,null,"EOLIA DE HOUELLE","F.LEBLANC",{"$f":"ROWS($1:414)","v":414}]
[null,null,"EPATANTE STAR","JM BAUDOIN ",{"$f":"ROWS($1:415)","v":415}]
[null,null,"EPATANTE STAR","PH.ALLAIRE",{"$f":"ROWS($1:416)","v":416}]
[null,null,"EPILOBE DE BAILLY","B.BOURGOIN",{"$f":"ROWS($1:417)","v":417}]
[null,null,"ERE NOUVELLE","PH.ALLAIRE",{"$f":"ROWS($1:418)","v":418}]
[null,null,"ERIDAN","S,GUARATO",{"$f":"ROWS($1:419)","v":419}]
[null,null,"ERIPRE AUVERGNIER","F.LEBLANC",{"$f":"ROWS($1:420)","v":420}]
[null,null,"ERMINIG D'OLIVERIE","F.LEBLANC",{"$f":"ROWS($1:421)","v":421}]
[null,null,"EROS D'OMBLAIS","M ABRIVARD",{"$f":"ROWS($1:422)","v":422}]
[null,null,"ESKO DE REBOMARD","F,ANNNE",{"$f":"ROWS($1:423)","v":423}]
[null,null,"ESPELLA VEDAQUAISE","PH.ALLAIRE",{"$f":"ROWS($1:424)","v":424}]
[null,null,"ESPOIR DE TOUES","J,M BAZIRE",{"$f":"ROWS($1:425)","v":425}]
[null,null,"ESPOIR D'HAUFOR","C,BIGEON",{"$f":"ROWS($1:426)","v":426}]
[null,null,"ESPRIT DELO","PH.ALLAIRE",{"$f":"ROWS($1:427)","v":427}]
[null,null,"ESPRIT PIERJI","T,DUVALDESTIN",{"$f":"ROWS($1:428)","v":428}]
[null,null,"ESTAMPE","PH.ALLAIRE",{"$f":"ROWS($1:429)","v":429}]
[null,null,"ESTILIANO","B.BOURGOIN",{"$f":"ROWS($1:430)","v":430}]
[null,null,"ETANG DE VRIE","D,BONNE",{"$f":"ROWS($1:431)","v":431}]
[null,null,"ETINCELLE DESTINEE","T,DUVALDESTIN",{"$f":"ROWS($1:432)","v":432}]
[null,null,"ETUDE MONEY","S,GUARATO",{"$f":"ROWS($1:433)","v":433}]
[null,null,"EVARISTE DU BOURG","S,GUARATO",{"$f":"ROWS($1:434)","v":434}]
[null,null,"EVENDESTINEE","T,DUVALDESTIN",{"$f":"ROWS($1:435)","v":435}]
[null,null,"EVEREST DE GINAI","PH.ALLAIRE",{"$f":"ROWS($1:436)","v":436}]
[null,null,"EVEREST VEDAQUAIS","PH.ALLAIRE",{"$f":"ROWS($1:437)","v":437}]
[null,null,"EVOLUTION","PH.ALLAIRE",{"$f":"ROWS($1:438)","v":438}]
[null,null,"EXCALUBUR DEBENICH","T,DUVALDESTIN",{"$f":"ROWS($1:439)","v":439}]
[null,null,"EXCELLENT","L.ABRIVARD",{"$f":"ROWS($1:440)","v":440}]
[null,null,"EXCITING LADY","J,M BAZIRE",{"$f":"ROWS($1:441)","v":441}]
[null,null,"EXCLUSIVE RED","PH.ALLAIRE",{"$f":"ROWS($1:442)","v":442}]
[null,null,"EXPRESS WAY","PH.ALLAIRE",{"$f":"ROWS($1:443)","v":443}]
[null,null,"EXTASY D'OURVILLE","S,GUARATO",{"$f":"ROWS($1:444)","v":444}]
[null,null,"EXTRA FORT","T,DUVALDESTIN",{"$f":"ROWS($1:445)","v":445}]
[null,null,"EYE OF THE STORM","PH.ALLAIRE",{"$f":"ROWS($1:446)","v":446}]
[null,null,"EZIO JOSSELYN","J,M BAZIRE",{"$f":"ROWS($1:447)","v":447}]
[null,null,"JERRY MOM","PH.ALLAIRE",{"$f":"ROWS($1:448)","v":448}]
[null,null,"NRIDGET LANDEMER","M ABRIVARD",{"$f":"ROWS($1:449)","v":449}]
[null,null,"ROYAL ROC","M ABRIVARD",{"$f":"ROWS($1:450)","v":450}]
[null,null,"SWEDISHMAN","T,DUVALDESTIN",{"$f":"ROWS($1:451)","v":451}]
[null,null,"TAYSON DE HOUELLE","F.LEBLANC",{"$f":"ROWS($1:452)","v":452}]
[null,null,"TEGO D'ETANG","C,BIGEON",{"$f":"ROWS($1:453)","v":453}]
[null,null,"TOPAZE  JEF","JM BAUDOIN ",{"$f":"ROWS($1:454)","v":454}]
[null,null,"TORNADE DU DIGEON","J,M BAZIRE",{"$f":"ROWS($1:455)","v":455}]
[null,null,"TRADERS","PH.ALLAIRE",{"$f":"ROWS($1:456)","v":456}]
[null,null,"UCCIANI","C,BIGEON",{"$f":"ROWS($1:457)","v":457}]
[null,null,"UDINE DU DESERT","D,BEKAERT",{"$f":"ROWS($1:458)","v":458}]
[null,null,"UN FIRST ","J,M BAZIRE",{"$f":"ROWS($1:459)","v":459}]
[null,null,"UN NUAGE D'OSMOZ","E ALLARD",{"$f":"ROWS($1:460)","v":460}]
[null,null,"UNDICI","D,BEKAERT",{"$f":"ROWS($1:461)","v":461}]
[null,null,"UNICE DE GUEZ","J,M BAZIRE",{"$f":"ROWS($1:462)","v":462}]
[null,null,"UNIVERS DE DAIDOU","T,DUVALDESTIN",{"$f":"ROWS($1:463)","v":463}]
[null,null,"UNO DANCER","T,DUVALDESTIN",{"$f":"ROWS($1:464)","v":464}]
[null,null,"UNSERT DERPET","J,L,BIGEON",{"$f":"ROWS($1:465)","v":465}]
[null,null,"UP AND QUICCK","F.LEBLANC",{"$f":"ROWS($1:466)","v":466}]
[null,null,"UROC","D,BEKAERT",{"$f":"ROWS($1:467)","v":467}]
[null,null,"UT VINIERE","M ABRIVARD",{"$f":"ROWS($1:468)","v":468}]
[null,null,"VAGABOND D'ECHAL","J,M BAZIRE",{"$f":"ROWS($1:469)","v":469}]
[null,null,"VAGABONDU MAG","B.BOURGOIN",{"$f":"ROWS($1:470)","v":470}]
[null,null,"VAISMAN","F,ANNNE",{"$f":"ROWS($1:471)","v":471}]
[null,null,"VAL ROYAL","J,M BAZIRE",{"$f":"ROWS($1:472)","v":472}]
[null,null,"VALKO JENILAT ","S,GUARATO",{"$f":"ROWS($1:473)","v":473}]
[null,null,"VANY DES LOYAUX","M ABRIVARD",{"$f":"ROWS($1:474)","v":474}]
[null,null,"VASCO FLOWER","C,BIGEON",{"$f":"ROWS($1:475)","v":475}]
[null,null,"VELOCE DU BANNEY","F.LEBLANC",{"$f":"ROWS($1:476)","v":476}]
[null,null,"VENDEEN","PH.BOUTIN",{"$f":"ROWS($1:477)","v":477}]
[null,null,"VENUS DE BAILLY","B.BOURGOIN",{"$f":"ROWS($1:478)","v":478}]
[null,null,"VERY NICE MUSIC","F,ANNNE",{"$f":"ROWS($1:479)","v":479}]
[null,null,"VIC BOISNANT","B.BOURGOIN",{"$f":"ROWS($1:480)","v":480}]
[null,null,"VIKING VA BENE","T,DUVALDESTIN",{"$f":"ROWS($1:481)","v":481}]
[null,null,"VILLEROI","S,GUARATO",{"$f":"ROWS($1:482)","v":482}]
[null,null,"VINCI PIERJI","M ABRIVARD",{"$f":"ROWS($1:483)","v":483}]
[null,null,"VISA DE LA NOEMIE","PH.BOUTIN",{"$f":"ROWS($1:484)","v":484}]
[null,null,"VITESSE DU VAL","B.BOURGOIN",{"$f":"ROWS($1:485)","v":485}]
[null,null,"VOLGA SATOR","D,BETHOUART",{"$f":"ROWS($1:486)","v":486}]

{"sheet":"TCD","index":1,"n_rows":50,"n_cols":6,"rows_kept":50,"cut":false,"hidden":false,"merged":[]}
[]
[null," Entraineur","T,DUVALDESTIN","<<< Choisir"]
[]
[null,"Cheval","N°"]
[null,"AS DE MUZE",35]
[null,"ASTOR DE ROZOY",38]
[null,"BOURBON SOMOLLI",125]
[null,"CAORCHES",156]
[null,"CAPRY SLY",161]
[null,"CASH DE FAEL",171]
[null,"CERE JOSSELYN",184]
[null,"CHARMEUSE DU CORTA",195]
[null,"CHIPIE DU VIVIER",204]
[null,"CORONA DE JOUDES ",241]
[null,"CRISTAL MONEY",250,null,null,"lors de la saisie en H8, (alors je ne sais pas le nom que vous donnez a ce système, mais je vous donne l'explication"]
[null,"DIPLOMATE D'AM",327,null,null,"serait-il possible, qu'après trois caractére il affiche des propositions existantes, et au fur et a mesure que je tape des lettres "]
[null,"DON QUICHOTTE",349,null,null,"la liste proposée diminue, pour enfin si le nom n'existe pas me proposer de le créer,"]
[null,"DONATO PIERJI",351,null,null,"Ceci afin d'éviter les doublons, comme il m'arrive de taper le point sur le clavier numérique et des fois ur la majuscule en bas du clavier "]
[null,"DREAM MASTER",368,null,null,"ceci expliquant cela qu'il ne trouve pas et que je crée un doublon,"]
[null,"DYNASTAR",383]
[null,"ENVOLEE DESTINEE",412,null,null,"on pourrait peut-être faire apparaitre la liste des propositions dans une colonne a droite ou a gauche de la saisie, cela n'est pas génant "]
[null,"ESPRIT PIERJI",428,null,null,"comme je vous le fais voir ci contre "]
[null,"EVENDESTINEE",435,null,null,"si toutefois cela est faisable"]
[null,"EXCALUBUR DEBENICH",439,null,null,"Par avance merci "]
[null,"EXTRA FORT",445]
[null,"SWEDISHMAN",451]
[null,"UNIVERS DE DAIDOU",463]
[null,"UNO DANCER",464]
[null,"VIKING VA BENE",481]
[null,"ADORABLE (TM 2700m)",2]
[null,"CHO OYU VEDAQUAIS (d4)",206]
[null,"ETINCELLE DESTINEE2",432]
[]
[]
[]
[]
[]
[]
[]
[]
[]
[]
[]
[]
[]
[]
[]
[]
[]
[null,null,null," "]